[Event "Early-Titled-Tuesday-Blitz-April-16-2024"]
[Site "Chess.com"]
[Date "2024.04.16"]
[Round "8"]
[White "kacperkarwowski"]
[Black "DarZay"]
[Result "1-0"]
[WhiteElo "2495"]
[BlackElo "2314"]
[TimeControl "180+1"]
[EndTime "9:31:04 PDT"]
[Termination "kacperkarwowski won by checkmate"]

1. e4 {[%clk 0:03:00.9]} 1... c5 {[%clk 0:02:53.8]} 2. Nf3 {[%clk 0:02:58.5]}
2... Nc6 {[%clk 0:02:52.5]} 3. a3 {[%clk 0:02:47.4]} 3... g6 {[%clk 0:02:51.3]}
4. Bc4 {[%clk 0:02:41.2]} 4... Bg7 {[%clk 0:02:50.7]} 5. c3 {[%clk 0:02:35.3]}
5... e6 {[%clk 0:02:49.5]} 6. Qe2 {[%clk 0:02:33.3]} 6... Nge7 {[%clk
0:02:47.7]} 7. e5 {[%clk 0:02:33.5]} 7... d5 {[%clk 0:02:45.9]} 8. exd6 {[%clk
0:02:33.3]} 8... Qxd6 {[%clk 0:02:45.8]} 9. O-O {[%clk 0:02:33.2]} 9... O-O
{[%clk 0:02:45.5]} 10. Ra2 {[%clk 0:02:18.8]} 10... e5 {[%clk 0:02:42.6]} 11. b4
{[%clk 0:02:13.9]} 11... cxb4 {[%clk 0:02:40.1]} 12. axb4 {[%clk 0:02:14.8]}
12... Bg4 {[%clk 0:02:38.1]} 13. h3 {[%clk 0:02:10]} 13... Bxf3 {[%clk
0:02:28.8]} 14. Qxf3 {[%clk 0:02:09.5]} 14... Kh8 {[%clk 0:02:27.9]} 15. b5
{[%clk 0:01:56.8]} 15... Nd8 {[%clk 0:02:24.1]} 16. Ba3 {[%clk 0:01:55.8]} 16...
Qd7 {[%clk 0:02:22.7]} 17. Bc5 {[%clk 0:01:53.5]} 17... f5 {[%clk 0:02:19.9]}
18. Rxa7 {[%clk 0:01:44.7]} 18... Rxa7 {[%clk 0:02:17.3]} 19. Bxa7 {[%clk
0:01:45.6]} 19... e4 {[%clk 0:02:17.5]} 20. Qe3 {[%clk 0:01:45.1]} 20... Nd5
{[%clk 0:02:11.2]} 21. Bxd5 {[%clk 0:01:24.9]} 21... Qxd5 {[%clk 0:02:10.8]} 22.
Qc5 {[%clk 0:01:25.8]} 22... Qxc5 {[%clk 0:02:03]} 23. Bxc5 {[%clk 0:01:26.7]}
23... Re8 {[%clk 0:02:03.4]} 24. Na3 {[%clk 0:01:23.2]} 24... Ne6 {[%clk
0:02:03.1]} 25. Be3 {[%clk 0:01:12.4]} 25... Rd8 {[%clk 0:01:58.9]} 26. Nc4
{[%clk 0:01:10.7]} 26... Rd3 {[%clk 0:01:49.7]} 27. g3 {[%clk 0:01:05.7]} 27...
Nc7 {[%clk 0:01:48]} 28. Ra1 {[%clk 0:01:02]} 28... h6 {[%clk 0:01:45.2]} 29. b6
{[%clk 0:00:55.9]} 29... Nd5 {[%clk 0:01:43.6]} 30. Ra7 {[%clk 0:00:53.3]} 30...
g5 {[%clk 0:01:39.2]} 31. Rxb7 {[%clk 0:00:39.6]} 31... f4 {[%clk 0:01:37.5]}
32. gxf4 {[%clk 0:00:39.6]} 32... gxf4 {[%clk 0:01:35.9]} 33. Bc5 {[%clk
0:00:32.3]} 33... Rxh3 {[%clk 0:01:35.5]} 34. Rb8+ {[%clk 0:00:32]} 34... Kh7
{[%clk 0:01:35.2]} 35. b7 {[%clk 0:00:32.4]} 35... f3 {[%clk 0:01:33.3]} 36. Bd6
{[%clk 0:00:21.1]} 36... Bxc3 {[%clk 0:01:19.1]} 37. Rd8 {[%clk 0:00:13]} 37...
Bxd2 {[%clk 0:01:09.7]} 38. b8=Q {[%clk 0:00:12.6]} 38... Nc3 {[%clk 0:01:09.8]}
39. Rh8+ {[%clk 0:00:12.6]} 39... Kg6 {[%clk 0:01:09.7]} 40. Qg8+ {[%clk
0:00:13.3]} 40... Kh5 {[%clk 0:01:09.5]} 41. Qf7+ {[%clk 0:00:13]} 41... Kh4
{[%clk 0:01:06.5]} 42. Be7+ {[%clk 0:00:13]} 42... Kg4 {[%clk 0:01:03.3]} 43.
Qe6+ {[%clk 0:00:13.1]} 43... Kf4 {[%clk 0:01:01.6]} 44. Qxh3 {[%clk 0:00:13.1]}
44... Ne2+ {[%clk 0:01:01.9]} 45. Kh2 {[%clk 0:00:13.4]} 45... e3 {[%clk
0:01:00.2]} 46. Bd6+ {[%clk 0:00:12.7]} 46... Ke4 {[%clk 0:01:00.5]} 47. Qe6+
{[%clk 0:00:11.5]} 47... Kd3 {[%clk 0:01:00.5]} 48. Nxe3 {[%clk 0:00:12]} 48...
Nd4 {[%clk 0:00:58.1]} 49. Qc4+ {[%clk 0:00:11.4]} 49... Ke4 {[%clk 0:00:57.8]}
50. Re8# {[%clk 0:00:12]} 1-0

[Event "Early-Titled-Tuesday-Blitz-April-16-2024"]
[Site "Chess.com"]
[Date "2024.04.16"]
[Round "8"]
[White "viktorskliarov"]
[Black "Zarinur"]
[Result "1-0"]
[WhiteElo "2619"]
[BlackElo "2503"]
[TimeControl "180+1"]
[EndTime "9:31:06 PDT"]
[Termination "viktorskliarov won by resignation"]

1. e4 {[%clk 0:03:00.9]} 1... e5 {[%clk 0:02:54.6]} 2. Nc3 {[%clk 0:03:00.7]}
2... Nf6 {[%clk 0:02:52.7]} 3. Bc4 {[%clk 0:03:00.3]} 3... Nc6 {[%clk
0:02:49.5]} 4. d3 {[%clk 0:03:00.3]} 4... Na5 {[%clk 0:02:44.9]} 5. Nge2 {[%clk
0:02:59.5]} 5... Bc5 {[%clk 0:02:43.4]} 6. Ng3 {[%clk 0:02:58.9]} 6... d6 {[%clk
0:02:29.2]} 7. O-O {[%clk 0:02:56.8]} 7... h6 {[%clk 0:02:25.5]} 8. Bb3 {[%clk
0:02:54.8]} 8... Nxb3 {[%clk 0:02:22.3]} 9. axb3 {[%clk 0:02:54.8]} 9... O-O
{[%clk 0:02:22.1]} 10. Na4 {[%clk 0:02:50.7]} 10... Be6 {[%clk 0:02:13.4]} 11.
Nxc5 {[%clk 0:02:47.3]} 11... dxc5 {[%clk 0:02:14.3]} 12. Be3 {[%clk 0:02:28.9]}
12... b6 {[%clk 0:02:13.9]} 13. h3 {[%clk 0:02:29]} 13... a5 {[%clk 0:02:13]}
14. f4 {[%clk 0:02:27.4]} 14... exf4 {[%clk 0:02:05.4]} 15. Rxf4 {[%clk
0:02:27.1]} 15... Nd7 {[%clk 0:01:59.1]} 16. Qd2 {[%clk 0:02:08.8]} 16... Ne5
{[%clk 0:01:56.9]} 17. Raf1 {[%clk 0:02:07.5]} 17... Qe7 {[%clk 0:01:51.8]} 18.
Nh5 {[%clk 0:01:42.6]} 18... Rad8 {[%clk 0:01:41.1]} 19. Nxg7 {[%clk 0:00:34.9]}
19... Kxg7 {[%clk 0:01:33.2]} 20. Rf6 {[%clk 0:00:35.1]} 20... Qxf6 {[%clk
0:01:05.2]} 21. Rxf6 {[%clk 0:00:34.1]} 21... Kxf6 {[%clk 0:01:04.8]} 22. Bxh6
{[%clk 0:00:34.8]} 22... Nf3+ {[%clk 0:00:30.8]} 23. gxf3 {[%clk 0:00:33.5]}
23... Rg8+ {[%clk 0:00:31]} 24. Kf2 {[%clk 0:00:27.8]} 24... Ke7 {[%clk
0:00:28.8]} 25. Qf4 {[%clk 0:00:25.3]} 25... Kd7 {[%clk 0:00:26.6]} 26. Bg5
{[%clk 0:00:23.6]} 26... Rdf8 {[%clk 0:00:25.8]} 27. h4 {[%clk 0:00:22.1]} 27...
Rh8 {[%clk 0:00:19.2]} 28. Qf6 {[%clk 0:00:21]} 28... Kc8 {[%clk 0:00:15.1]} 29.
Bf4 {[%clk 0:00:18.4]} 29... Rh7 {[%clk 0:00:09.1]} 30. Qe7 {[%clk 0:00:18]} 1-0

[Event "Early-Titled-Tuesday-Blitz-April-16-2024"]
[Site "Chess.com"]
[Date "2024.04.16"]
[Round "8"]
[White "osielchesslover2011"]
[Black "a-z30"]
[Result "1-0"]
[WhiteElo "2106"]
[BlackElo "2364"]
[TimeControl "180+1"]
[EndTime "9:31:07 PDT"]
[Termination "osielchesslover2011 won by resignation"]

1. e4 {[%clk 0:03:00.9]} 1... d6 {[%clk 0:02:59.9]} 2. d4 {[%clk 0:03:00.4]}
2... Nf6 {[%clk 0:03:00.2]} 3. Nc3 {[%clk 0:03:00.3]} 3... g6 {[%clk 0:03:00.4]}
4. f4 {[%clk 0:03:00.7]} 4... Bg7 {[%clk 0:03:00.6]} 5. Nf3 {[%clk 0:03:01.2]}
5... O-O {[%clk 0:03:00.8]} 6. e5 {[%clk 0:03:00.8]} 6... dxe5 {[%clk
0:03:00.1]} 7. fxe5 {[%clk 0:03:01.6]} 7... Nd5 {[%clk 0:03:00]} 8. Bc4 {[%clk
0:03:01.3]} 8... Nxc3 {[%clk 0:02:59.7]} 9. bxc3 {[%clk 0:03:02]} 9... c5 {[%clk
0:03:00.3]} 10. O-O {[%clk 0:03:00.1]} 10... Bg4 {[%clk 0:03:00.3]} 11. Be3
{[%clk 0:02:58]} 11... Nc6 {[%clk 0:03:00]} 12. h3 {[%clk 0:02:54.8]} 12... Bxf3
{[%clk 0:02:59.2]} 13. Rxf3 {[%clk 0:02:54.3]} 13... cxd4 {[%clk 0:02:56.5]} 14.
cxd4 {[%clk 0:02:53.8]} 14... Rc8 {[%clk 0:02:55.8]} 15. Qf1 {[%clk 0:02:49.3]}
15... Nxd4 {[%clk 0:02:45.4]} 16. Rxf7 {[%clk 0:02:29.2]} 16... e6 {[%clk
0:01:36.5]} 17. Rxf8+ {[%clk 0:02:16.6]} 17... Qxf8 {[%clk 0:01:36]} 18. Bxd4
{[%clk 0:02:12.8]} 18... Qxf1+ {[%clk 0:01:10.1]} 19. Bxf1 {[%clk 0:02:10.2]}
19... Rxc2 {[%clk 0:01:11]} 20. Rd1 {[%clk 0:02:03.1]} 20... a6 {[%clk
0:00:50.1]} 21. Bd3 {[%clk 0:01:54.8]} 21... Rc6 {[%clk 0:00:30.5]} 22. Be4
{[%clk 0:01:50.3]} 22... Rc7 {[%clk 0:00:26]} 23. Bb6 {[%clk 0:01:46]} 23... Rc4
{[%clk 0:00:25.4]} 24. Bd3 {[%clk 0:01:17.8]} 24... Ra4 {[%clk 0:00:19.3]} 25.
Bc2 {[%clk 0:01:00.3]} 25... Rb4 {[%clk 0:00:10.2]} 26. Rd8+ {[%clk 0:00:42.4]}
26... Kf7 {[%clk 0:00:09.1]} 27. Rd7+ {[%clk 0:00:41.9]} 27... Kg8 {[%clk
0:00:08.9]} 28. Bc7 {[%clk 0:00:32.4]} 28... Rc4 {[%clk 0:00:06.7]} 29. Bb3
{[%clk 0:00:26]} 29... Rc1+ {[%clk 0:00:06.4]} 30. Kf2 {[%clk 0:00:23.6]} 30...
Rc6 {[%clk 0:00:06.7]} 31. Bd6 {[%clk 0:00:20.5]} 31... b5 {[%clk 0:00:04.5]}
32. Bxe6+ {[%clk 0:00:20]} 1-0

[Event "Early-Titled-Tuesday-Blitz-April-16-2024"]
[Site "Chess.com"]
[Date "2024.04.16"]
[Round "8"]
[White "YegoryoCh"]
[Black "ilqar_74"]
[Result "1-0"]
[WhiteElo "2585"]
[BlackElo "2764"]
[TimeControl "180+1"]
[EndTime "9:31:10 PDT"]
[Termination "YegoryoCh won by resignation"]

1. e4 {[%clk 0:03:00.9]} 1... c5 {[%clk 0:02:59.2]} 2. Nf3 {[%clk 0:02:59]} 2...
d6 {[%clk 0:02:59.8]} 3. d4 {[%clk 0:02:59.1]} 3... cxd4 {[%clk 0:03:00.7]} 4.
Nxd4 {[%clk 0:03:00]} 4... Nf6 {[%clk 0:03:00.3]} 5. Nc3 {[%clk 0:02:59.9]} 5...
e5 {[%clk 0:03:00.3]} 6. Nb3 {[%clk 0:02:36.2]} 6... Be7 {[%clk 0:02:58.9]} 7.
Bg5 {[%clk 0:02:30]} 7... Nbd7 {[%clk 0:02:58]} 8. Qd2 {[%clk 0:02:28.8]} 8...
O-O {[%clk 0:02:57.3]} 9. O-O-O {[%clk 0:02:28.6]} 9... a5 {[%clk 0:02:56.3]}
10. Bb5 {[%clk 0:02:28.2]} 10... a4 {[%clk 0:02:22.1]} 11. Na1 {[%clk
0:02:13.9]} 11... a3 {[%clk 0:02:20.4]} 12. Bxd7 {[%clk 0:02:04.2]} 12... axb2+
{[%clk 0:02:18.7]} 13. Kxb2 {[%clk 0:02:04.3]} 13... Bxd7 {[%clk 0:02:05.7]} 14.
Bxf6 {[%clk 0:02:04.3]} 14... Bxf6 {[%clk 0:02:06.2]} 15. Qxd6 {[%clk
0:02:02.8]} 15... Be6 {[%clk 0:01:19]} 16. Qxd8 {[%clk 0:01:59.4]} 16... Bxd8
{[%clk 0:01:19.9]} 17. Nb3 {[%clk 0:01:59.1]} 17... Bb6 {[%clk 0:01:18.8]} 18.
f3 {[%clk 0:01:46.6]} 18... Bxb3 {[%clk 0:01:18.2]} 19. Kxb3 {[%clk 0:01:47.5]}
19... Rfc8 {[%clk 0:01:12.7]} 20. Rd5 {[%clk 0:01:36.9]} 20... f6 {[%clk
0:01:05.2]} 21. Nb5 {[%clk 0:01:27.9]} 21... Ra5 {[%clk 0:00:58.5]} 22. a4
{[%clk 0:01:09.7]} 22... Rca8 {[%clk 0:00:54]} 23. Ra1 {[%clk 0:01:09.7]} 23...
Be3 {[%clk 0:00:50]} 24. Nc7 {[%clk 0:01:04.3]} 24... R8a7 {[%clk 0:00:42.2]}
25. Rxa5 {[%clk 0:00:32.5]} 25... Rxa5 {[%clk 0:00:43.1]} 26. Rd1 {[%clk
0:00:27.8]} 26... h5 {[%clk 0:00:38.4]} 27. Rd8+ {[%clk 0:00:25.8]} 27... Kh7
{[%clk 0:00:36.1]} 28. Nb5 {[%clk 0:00:25.4]} 28... Ra6 {[%clk 0:00:31.7]} 29.
Rd7 {[%clk 0:00:25.8]} 29... b6 {[%clk 0:00:28.3]} 30. Ra7 {[%clk 0:00:22.9]}
30... Rxa7 {[%clk 0:00:26.9]} 31. Nxa7 {[%clk 0:00:23.8]} 31... Kg6 {[%clk
0:00:27.5]} 32. Kc4 {[%clk 0:00:20.7]} 32... Kg5 {[%clk 0:00:27.2]} 33. Kb5
{[%clk 0:00:20.1]} 33... Kf4 {[%clk 0:00:27.3]} 34. Nc8 {[%clk 0:00:20.2]} 34...
g6 {[%clk 0:00:16.7]} 35. Nxb6 {[%clk 0:00:20.1]} 35... Bxb6 {[%clk 0:00:16.7]}
36. Kxb6 {[%clk 0:00:20.2]} 36... f5 {[%clk 0:00:17.6]} 37. a5 {[%clk
0:00:20.5]} 37... fxe4 {[%clk 0:00:17.9]} 38. fxe4 {[%clk 0:00:21.4]} 38... Kxe4
{[%clk 0:00:18.8]} 39. a6 {[%clk 0:00:21.9]} 1-0

[Event "Early-Titled-Tuesday-Blitz-April-16-2024"]
[Site "Chess.com"]
[Date "2024.04.16"]
[Round "8"]
[White "NusratAlo"]
[Black "diamonds13"]
[Result "0-1"]
[WhiteElo "1904"]
[BlackElo "2338"]
[TimeControl "180+1"]
[EndTime "9:31:10 PDT"]
[Termination "diamonds13 won by resignation"]

1. e4 {[%clk 0:03:00.9]} 1... c5 {[%clk 0:02:58]} 2. Nf3 {[%clk 0:03:00.8]} 2...
e6 {[%clk 0:02:58.3]} 3. d4 {[%clk 0:03:00.6]} 3... cxd4 {[%clk 0:02:58.9]} 4.
Nxd4 {[%clk 0:03:01.5]} 4... Nf6 {[%clk 0:02:59.3]} 5. Nc3 {[%clk 0:03:00.1]}
5... Nc6 {[%clk 0:02:59.8]} 6. Ndb5 {[%clk 0:02:57]} 6... Bb4 {[%clk 0:03:00]}
7. Nd6+ {[%clk 0:02:55.7]} 7... Ke7 {[%clk 0:02:59.2]} 8. Bf4 {[%clk 0:02:54.1]}
8... e5 {[%clk 0:02:59.4]} 9. Nf5+ {[%clk 0:02:54.5]} 9... Kf8 {[%clk
0:02:59.9]} 10. Bg5 {[%clk 0:02:42.3]} 10... d5 {[%clk 0:02:59.4]} 11. Bxf6
{[%clk 0:02:35.7]} 11... Qxf6 {[%clk 0:02:54.7]} 12. Qxd5 {[%clk 0:02:34.3]}
12... Bxf5 {[%clk 0:02:51.6]} 13. exf5 {[%clk 0:02:30]} 13... Rd8 {[%clk
0:02:50.5]} 14. Qe4 {[%clk 0:02:18.4]} 14... Rd4 {[%clk 0:02:47]} 15. Qe3 {[%clk
0:02:13.9]} 15... Qxf5 {[%clk 0:02:36.4]} 16. Be2 {[%clk 0:02:02.8]} 16... Re4
{[%clk 0:02:20.8]} 17. Qd3 {[%clk 0:02:01.7]} 17... Nd4 {[%clk 0:02:12.5]} 18.
O-O {[%clk 0:01:22.3]} 18... Bxc3 {[%clk 0:02:08.7]} 19. Bf3 {[%clk 0:00:53]}
19... Nxf3+ {[%clk 0:01:36]} 20. gxf3 {[%clk 0:00:41]} 20... Qg5+ {[%clk
0:01:35.5]} 21. Kh1 {[%clk 0:00:41.1]} 21... Rd4 {[%clk 0:01:27]} 22. Qxc3
{[%clk 0:00:37.9]} 22... g6 {[%clk 0:01:25.7]} 23. Rg1 {[%clk 0:00:34.1]} 23...
Qh5 {[%clk 0:01:21.1]} 24. Rae1 {[%clk 0:00:27.6]} 24... Kg7 {[%clk 0:01:18.6]}
25. Rg2 {[%clk 0:00:20.5]} 25... Rhd8 {[%clk 0:01:12.7]} 26. Reg1 {[%clk
0:00:18.7]} 26... b5 {[%clk 0:01:05.4]} 27. a3 {[%clk 0:00:18.2]} 27... a5
{[%clk 0:01:03.5]} 28. Rg5 {[%clk 0:00:18.4]} 28... Qh4 {[%clk 0:00:58.1]} 29.
Qe3 {[%clk 0:00:14.3]} 29... f6 {[%clk 0:00:50.2]} 30. R5g4 {[%clk 0:00:14.3]}
30... Qh3 {[%clk 0:00:39]} 31. R4g3 {[%clk 0:00:13.5]} 31... Qf5 {[%clk
0:00:37.8]} 32. Rg4 {[%clk 0:00:12.8]} 32... Rd1 {[%clk 0:00:33.6]} 33. Qa7+
{[%clk 0:00:11.2]} 33... R8d7 {[%clk 0:00:32.1]} 34. Qxa5 {[%clk 0:00:11.2]}
34... Qxf3+ {[%clk 0:00:30.1]} 35. Rg2 {[%clk 0:00:10.6]} 35... Rxg1+ {[%clk
0:00:30.6]} 36. Kxg1 {[%clk 0:00:09.6]} 36... Rd1+ {[%clk 0:00:31.2]} 0-1

[Event "Early-Titled-Tuesday-Blitz-April-16-2024"]
[Site "Chess.com"]
[Date "2024.04.16"]
[Round "8"]
[White "mariangie523"]
[Black "StelaSfw"]
[Result "1-0"]
[WhiteElo "2155"]
[BlackElo "1626"]
[TimeControl "180+1"]
[EndTime "9:31:12 PDT"]
[Termination "mariangie523 won on time"]

1. e4 {[%clk 0:03:00.9]} 1... c6 {[%clk 0:02:30.5]} 2. d4 {[%clk 0:02:58.3]}
2... d5 {[%clk 0:02:30.7]} 3. Nc3 {[%clk 0:02:58.6]} 3... dxe4 {[%clk
0:02:29.5]} 4. Nxe4 {[%clk 0:02:59.5]} 4... Bf5 {[%clk 0:02:28.3]} 5. Ng3 {[%clk
0:02:59.6]} 5... Bg6 {[%clk 0:02:27.4]} 6. Nf3 {[%clk 0:03:00.2]} 6... e6 {[%clk
0:02:27.5]} 7. h4 {[%clk 0:03:00.2]} 7... Nf6 {[%clk 0:02:27.5]} 8. Ne5 {[%clk
0:02:46.5]} 8... Nbd7 {[%clk 0:02:24.3]} 9. Nxg6 {[%clk 0:02:41.6]} 9... hxg6
{[%clk 0:02:23.4]} 10. Bg5 {[%clk 0:02:39.8]} 10... Qa5+ {[%clk 0:02:22]} 11.
Bd2 {[%clk 0:02:29.9]} 11... Qb6 {[%clk 0:02:21.9]} 12. Bc3 {[%clk 0:02:29.7]}
12... O-O-O {[%clk 0:02:21.1]} 13. Qd2 {[%clk 0:02:15.4]} 13... Nd5 {[%clk
0:02:21.2]} 14. O-O-O {[%clk 0:01:59.1]} 14... Nxc3 {[%clk 0:02:19.2]} 15. Qxc3
{[%clk 0:02:00]} 15... Nf6 {[%clk 0:02:17.1]} 16. Bc4 {[%clk 0:01:54.1]} 16...
Nd5 {[%clk 0:02:16.9]} 17. Bxd5 {[%clk 0:01:53.6]} 17... exd5 {[%clk 0:02:17.4]}
18. Qf3 {[%clk 0:01:47.6]} 18... Qc7 {[%clk 0:02:16.5]} 19. h5 {[%clk
0:01:40.5]} 19... f6 {[%clk 0:02:16.8]} 20. hxg6 {[%clk 0:01:39.6]} 20... Bd6
{[%clk 0:02:04]} 21. Nf5 {[%clk 0:01:37.6]} 21... Bf4+ {[%clk 0:01:55.7]} 22.
Kb1 {[%clk 0:01:36.3]} 22... Bg5 {[%clk 0:01:23.6]} 23. Qg4 {[%clk 0:01:09.5]}
23... Kb8 {[%clk 0:01:18.5]} 24. g3 {[%clk 0:01:07.8]} 24... Bh6 {[%clk
0:01:06]} 25. Nxh6 {[%clk 0:01:04.7]} 25... Rxh6 {[%clk 0:00:38.6]} 26. Rxh6
{[%clk 0:01:03.8]} 26... gxh6 {[%clk 0:00:37.9]} 27. Rh1 {[%clk 0:01:01.5]}
27... Qg7 {[%clk 0:00:34.3]} 28. f4 {[%clk 0:01:00.6]} 28... Rh8 {[%clk
0:00:20.1]} 29. f5 {[%clk 0:01:00.3]} 29... h5 {[%clk 0:00:20.7]} 30. Qf4+
{[%clk 0:01:00.2]} 30... Ka8 {[%clk 0:00:19.7]} 31. a3 {[%clk 0:00:55]} 31... a6
{[%clk 0:00:20.1]} 32. g4 {[%clk 0:00:47.1]} 32... h4 {[%clk 0:00:17.9]} 33. g5
{[%clk 0:00:41.5]} 33... fxg5 {[%clk 0:00:16.8]} 34. Qxg5 {[%clk 0:00:42]} 34...
h3 {[%clk 0:00:11.5]} 35. f6 {[%clk 0:00:42.3]} 35... Qc7 {[%clk 0:00:09]} 36.
f7 {[%clk 0:00:38.4]} 36... h2 {[%clk 0:00:07.4]} 37. g7 {[%clk 0:00:37.2]}
37... Qxf7 {[%clk 0:00:02.1]} 38. gxh8=Q+ {[%clk 0:00:37.1]} 38... Ka7 {[%clk
0:00:02.6]} 39. Qxh2 {[%clk 0:00:37.1]} 39... Qd7 {[%clk 0:00:02.2]} 40. Qh3
{[%clk 0:00:32.7]} 1-0

[Event "Early-Titled-Tuesday-Blitz-April-16-2024"]
[Site "Chess.com"]
[Date "2024.04.16"]
[Round "8"]
[White "Levanzovsky"]
[Black "dmosesov"]
[Result "0-1"]
[WhiteElo "2500"]
[BlackElo "2633"]
[TimeControl "180+1"]
[EndTime "9:31:13 PDT"]
[Termination "dmosesov won by resignation"]

1. Nc3 {[%clk 0:03:00.9]} 1... Nf6 {[%clk 0:02:53.5]} 2. Nf3 {[%clk 0:02:56.7]}
2... d5 {[%clk 0:02:52.2]} 3. d3 {[%clk 0:02:54.7]} 3... Nc6 {[%clk 0:02:37.5]}
4. e4 {[%clk 0:02:50.9]} 4... dxe4 {[%clk 0:02:26]} 5. Nxe4 {[%clk 0:02:50.4]}
5... Bf5 {[%clk 0:02:12.7]} 6. Nxf6+ {[%clk 0:02:45.4]} 6... exf6 {[%clk
0:02:13.6]} 7. Be2 {[%clk 0:02:33.4]} 7... Qd7 {[%clk 0:02:08]} 8. Be3 {[%clk
0:02:33]} 8... O-O-O {[%clk 0:02:05.3]} 9. Qd2 {[%clk 0:02:32.6]} 9... Kb8
{[%clk 0:01:58.4]} 10. O-O-O {[%clk 0:02:29.2]} 10... Nb4 {[%clk 0:01:52.1]} 11.
a3 {[%clk 0:02:20.9]} 11... Nd5 {[%clk 0:01:49.4]} 12. Nd4 {[%clk 0:01:59.7]}
12... Bg6 {[%clk 0:01:39.3]} 13. Bf3 {[%clk 0:01:59.6]} 13... Nxe3 {[%clk
0:01:19.9]} 14. fxe3 {[%clk 0:01:58.7]} 14... Bc5 {[%clk 0:01:20.4]} 15. Nb3
{[%clk 0:01:55.4]} 15... Bb6 {[%clk 0:01:20.6]} 16. Kb1 {[%clk 0:01:49.6]} 16...
Rhe8 {[%clk 0:01:20.3]} 17. Rhe1 {[%clk 0:01:49.9]} 17... h5 {[%clk 0:00:59.4]}
18. Qb4 {[%clk 0:01:48.7]} 18... Qd6 {[%clk 0:00:53.6]} 19. Qxd6 {[%clk
0:01:45.1]} 19... Rxd6 {[%clk 0:00:54.5]} 20. e4 {[%clk 0:00:55.6]} 20... h4
{[%clk 0:00:54.6]} 21. Bg4 {[%clk 0:00:50]} 21... Rdd8 {[%clk 0:00:46.8]} 22.
Rf1 {[%clk 0:00:49.1]} 22... c5 {[%clk 0:00:33.6]} 23. Nd2 {[%clk 0:00:46.6]}
23... Bc7 {[%clk 0:00:32.1]} 24. h3 {[%clk 0:00:47]} 24... b5 {[%clk 0:00:23.6]}
25. b3 {[%clk 0:00:18.9]} 25... a6 {[%clk 0:00:23.6]} 26. Rde1 {[%clk
0:00:11.6]} 26... Bg3 {[%clk 0:00:23.2]} 27. Re2 {[%clk 0:00:11.5]} 27... Kc7
{[%clk 0:00:22.8]} 28. Rf3 {[%clk 0:00:11.3]} 28... Kc6 {[%clk 0:00:22.5]} 29.
Nf1 {[%clk 0:00:11.7]} 29... Be5 {[%clk 0:00:21.7]} 30. Ne3 {[%clk 0:00:11.8]}
30... Bd4 {[%clk 0:00:20.2]} 31. Nd5 {[%clk 0:00:10.2]} 31... Kb7 {[%clk
0:00:16.4]} 32. Rd2 {[%clk 0:00:09.5]} 32... Rxd5 {[%clk 0:00:15]} 0-1

[Event "Early-Titled-Tuesday-Blitz-April-16-2024"]
[Site "Chess.com"]
[Date "2024.04.16"]
[Round "8"]
[White "campochess"]
[Black "Fernando_Offermann"]
[Result "0-1"]
[WhiteElo "2226"]
[BlackElo "2452"]
[TimeControl "180+1"]
[EndTime "9:31:13 PDT"]
[Termination "Fernando_Offermann won on time"]

1. e4 {[%clk 0:02:48.6]} 1... c5 {[%clk 0:02:58.9]} 2. b4 {[%clk 0:02:47.5]}
2... cxb4 {[%clk 0:02:58.8]} 3. d4 {[%clk 0:02:47.6]} 3... d5 {[%clk 0:02:58.7]}
4. exd5 {[%clk 0:02:47.4]} 4... Nf6 {[%clk 0:02:57.4]} 5. c4 {[%clk 0:02:46.6]}
5... bxc3 {[%clk 0:02:57.6]} 6. Nxc3 {[%clk 0:02:46.2]} 6... Nxd5 {[%clk
0:02:58]} 7. Bb5+ {[%clk 0:02:43.8]} 7... Nc6 {[%clk 0:02:58.1]} 8. Bxc6+ {[%clk
0:02:39.1]} 8... bxc6 {[%clk 0:02:57.9]} 9. Bd2 {[%clk 0:02:37.7]} 9... g6
{[%clk 0:02:55.1]} 10. Nf3 {[%clk 0:02:37.5]} 10... Bg7 {[%clk 0:02:55.3]} 11.
O-O {[%clk 0:02:37.2]} 11... O-O {[%clk 0:02:55.6]} 12. Qa4 {[%clk 0:02:36.5]}
12... Bd7 {[%clk 0:02:54.6]} 13. Qa3 {[%clk 0:02:35.4]} 13... Nb6 {[%clk
0:02:52.6]} 14. Bg5 {[%clk 0:02:29.9]} 14... Re8 {[%clk 0:02:50.2]} 15. Rfe1
{[%clk 0:02:29.6]} 15... Bf8 {[%clk 0:02:48.8]} 16. Re2 {[%clk 0:02:21.8]} 16...
f6 {[%clk 0:02:48.9]} 17. Bf4 {[%clk 0:02:16.3]} 17... Bg4 {[%clk 0:02:48.3]}
18. Rd2 {[%clk 0:01:52.7]} 18... e5 {[%clk 0:02:45.8]} 19. Qb3+ {[%clk
0:01:48.1]} 19... Be6 {[%clk 0:02:45.8]} 20. d5 {[%clk 0:01:44.8]} 20... Nxd5
{[%clk 0:02:45.8]} 21. Be3 {[%clk 0:01:40.8]} 21... Qa5 {[%clk 0:02:40.9]} 22.
Ne4 {[%clk 0:01:38.5]} 22... Be7 {[%clk 0:02:19.7]} 23. Rc1 {[%clk 0:01:20.6]}
23... Nxe3 {[%clk 0:02:16.8]} 24. Qxe3 {[%clk 0:01:19]} 24... Bd5 {[%clk
0:01:47.3]} 25. Nc3 {[%clk 0:01:10.7]} 25... Rad8 {[%clk 0:01:46.1]} 26. Rcd1
{[%clk 0:01:08.1]} 26... Bb4 {[%clk 0:01:35.8]} 27. Nxd5 {[%clk 0:01:02.9]}
27... cxd5 {[%clk 0:01:36]} 28. Rxd5 {[%clk 0:00:46.1]} 28... Rxd5 {[%clk
0:01:34.3]} 29. Qb3 {[%clk 0:00:46.2]} 29... Rd8 {[%clk 0:01:33.9]} 30. h4
{[%clk 0:00:41.6]} 30... Kg7 {[%clk 0:01:33.5]} 31. Rb1 {[%clk 0:00:38.5]} 31...
Be7 {[%clk 0:01:31.2]} 32. h5 {[%clk 0:00:33.7]} 32... gxh5 {[%clk 0:01:30.4]}
33. Nh4 {[%clk 0:00:31.3]} 33... e4 {[%clk 0:01:27.3]} 34. g3 {[%clk 0:00:19.1]}
34... f5 {[%clk 0:01:20.6]} 35. Ng2 {[%clk 0:00:18]} 35... Rd3 {[%clk
0:01:12.3]} 36. Qb7 {[%clk 0:00:16.6]} 36... R8d7 {[%clk 0:01:12.7]} 37. Qc6
{[%clk 0:00:15.8]} 37... Qd5 {[%clk 0:01:10.5]} 38. Qc8 {[%clk 0:00:14.6]} 38...
Rd1+ {[%clk 0:01:10.2]} 39. Rxd1 {[%clk 0:00:14.4]} 39... Qxd1+ {[%clk
0:01:10.7]} 40. Kh2 {[%clk 0:00:14.5]} 40... Bg5 {[%clk 0:01:11.1]} 41. Qe8
{[%clk 0:00:12.9]} 41... Qd5 {[%clk 0:01:07.8]} 42. Qxh5 {[%clk 0:00:11]} 42...
h6 {[%clk 0:01:07.2]} 43. Qe2 {[%clk 0:00:09.2]} 43... Qd3 {[%clk 0:01:06.3]}
44. Qh5 {[%clk 0:00:08.8]} 44... Qf3 {[%clk 0:01:04.3]} 45. Qe8 {[%clk
0:00:07.4]} 45... Rf7 {[%clk 0:01:01.5]} 46. Qe5+ {[%clk 0:00:07.1]} 46... Kg6
{[%clk 0:01:00.7]} 47. Qd6+ {[%clk 0:00:06.4]} 47... Rf6 {[%clk 0:01:01.1]} 48.
Qe7 {[%clk 0:00:05.3]} 48... Qh5+ {[%clk 0:01:01.4]} 49. Kg1 {[%clk 0:00:02.7]}
49... Qd1+ {[%clk 0:01:00.5]} 50. Kh2 {[%clk 0:00:02.4]} 50... Qd6 {[%clk
0:00:59.2]} 51. Qe8+ {[%clk 0:00:01.5]} 51... Kg7 {[%clk 0:00:59.7]} 0-1